Cogmind - Beta 13 @@@ ROGUE MODE // 2024.04.03 @ 18:37:55 Player: DoFeek Result: Destroyed by S-10 Pest with Light Assault Rifle Performance ------------- Evolutions (2) 1000 Regions Visited (4) 800 Robots Destroyed (33) 165 Value Destroyed (879) 879 Prototype IDs (1) 20 Alien Tech Used (0) 0 Bonus (0) 0 TOTAL SCORE: 2864 Bonus ------- None Cogmind --------- Core Integrity 0/550 Matter 274/300 Energy 100/100 System Corruption 0% Temperature Cool (0) Movement Core (700) Ox13 Location -8/Materials Parts ------- > --- POWER (1) -------- (None) > --- PROPULSION (4) --- (None) > --- UTILITY (4) ------ High-capacity Storage Unit > --- WEAPON (2) ------- (None) > --- INVENTORY (20) --- (None) Peak State ------------ > --- POWER ------------ Light Nuclear Core > --- PROPULSION ------- Armored Treads Aluminum Leg Aluminum Leg Aluminum Leg > --- UTILITY ---------- Improved Heat Sink High-capacity Storage Unit Targeting Computer > --- WEAPON ----------- Particle Gun Advanced Beam Rifle > --- INVENTORY -------- Light Treads [Rating: 20] Favorites ----------- Power Light Ion Engine Engine Light Ion Engine Power Core Light Nuclear Core Propulsion Light Treads Treads Light Treads Leg Aluminum Leg Utility Targeting Computer Device Improved Heat Sink Storage High-capacity Storage Unit Processor Targeting Computer Protection Medium Armor Plating Weapon EM Pulse Gun Energy Gun EM Pulse Gun Ballistic Gun Assault Rifle Build | -11 -10 -9 -9 -8 ------- Run | Yrd Mat Mat Min Mat Slots Evolved 4 | . . 2 . 2 Power . | . . . . . Propulsion 2 | . . 1 . 1 Utility 2 | . . 1 . 1 Weapon . | . . . . . Parts Attached 45 | 7 6 6 10 16 Power 5 | 1 1 . 1 2 Engine 4 | 1 1 . 1 1 Core 1 | . . . . 1 Reactor . | . . . . . Propulsion 17 | 2 . 4 4 7 Treads 14 | 2 . 4 4 4 Leg 3 | . . . . 3 Wheel . | . . . . . Hover . | . . . . . Flight . | . . . . . Utility 11 | 1 2 1 2 5 Device 1 | . . . . 1 Storage 3 | 1 1 . . 1 Processor 4 | . 1 1 . 2 Hackware . | . . . . . Protection 3 | . . . 2 1 Artifact . | . . . . . Weapon 12 | 3 3 1 3 2 Energy Gun 9 | 1 3 1 3 1 Energy Cannon . | . . . . . Ballistic Gun 3 | 2 . . . 1 Ballistic Cannon . | . . . . . Launcher . | . . . . . Special Weapon . | . . . . . Impact Weapon . | . . . . . Slashing Weapon . | . . . . . Piercing Weapon . | . . . . . Special Melee Weapon . | . . . . . Unidentified Prototypes 1 | . . . . 1 Corrupted Parts 2 | . . 2 . . System Corruption 17 | . . 17 . . Parts Lost 24 | . . 1 13 10 Power 4 | . . . 2 2 Propulsion 6 | . . . 4 2 Utility 6 | . . . 3 3 Weapon 8 | . . 1 4 3 Highest Loss Streak 13 | . . 1 13 5 To Critical Strikes . | . . . . . Average Slot Usage (%) 75 | . 92 98 51 45 Engine 8 | . 14 11 1 2 Treads 20 | . 28 31 14 6 Device 1 | . . . . 3 Storage 11 | . 14 11 11 9 Processor 10 | . 7 22 12 7 Energy Gun 14 | . 16 21 9 9 Ballistic Gun 4 | . 11 . . . Naked Turns . | . . . . . Heaviest Build 53 | 13 48 47 47 53 Greatest Support 60 | 40 40 60 60 40 Greatest Overweight (x) 14 | . 1 1 2 14 Average Overweight (x) . | . . . 1 3 Largest Inventory Capacity 20 | 8 20 20 20 20 Average Capacity 17 | 7 14 20 20 20 Most Carried 14 | 4 14 13 13 6 Average Carried 5 | 1 7 12 7 . Final Capacity 20 | 8 20 20 20 20 Final Carried 14 | 2 14 13 4 . Class Distribution -------------------- 96% | Mutant 3% | Scavenger-Mutant Dominant Class ---------------- Mutant | -10/Materials Mutant | -9/Materials Mutant | -9/Mines Mutant | -8/Materials Resources | -11 -10 -9 -9 -8 ----------- Run | Yrd Mat Mat Min Mat Matter Collected 634 | 238 170 40 80 106 Remotely . | . . . . . Salvage Created 1185 | . 590 259 90 246 Parts 66 | . 36 18 4 8 Haulers Intercepted 1 | . 1 . . . Recyclers Shooed 2 | . 1 1 . . Parts Field Recycled . | . . . . . Retrieved Matter . | . . . . . Parts Self-Destructed . | . . . . . Prevented . | . . . . . Kills | -11 -10 -9 -9 -8 ------- Run | Yrd Mat Mat Min Mat Combat Hostiles Destroyed 28 | . 13 7 2 6 Guns 27 | . 13 6 2 6 Classes Destroyed 9 | . 5 2 1 1 Hauler 1 | . 1 . . . Recycler 1 | . 1 . . . Watcher 3 | . 2 1 . . Swarmer 11 | . 6 4 . 1 Grunt 11 | . 7 1 . 3 Brawler 1 | . . 1 . . Sentry 2 | . . 1 . 1 Demolisher 2 | . . . 2 . Hunter 1 | . . . . 1 Best Kill Streak 8 | . 8 5 1 3 Combat Bots Only 8 | . 8 5 1 3 Max Kills in Single Turn 2 | . 2 2 1 1 Gunslinging 1 | . 1 1 . . Exploded . | . . . . . Melee . | . . . . . Uniques/NPCs Destroyed . | . . . . . Combat | -11 -10 -9 -9 -8 -------- Run | Yrd Mat Mat Min Mat Hostile Shots Fired 339 | . 48 32 61 198 Missed 87 | . 12 10 9 56 Damage Taken 3682 | . 386 291 1539 1466 Core 967 | . 115 85 210 557 Absorbed by Shields . | . . . . . Regen/Repaired (Parts) 109 | . . 109 . . Core Remaining (%) 60 | 100 54 . 26 . Volleys Fired 109 | . 35 20 19 35 Largest 2 | . 2 2 2 2 Hottest 130 | . 105 80 130 126 Shots Fired 175 | . 70 40 24 41 Gun 175 | . 70 40 24 41 Cannon . | . . . . . Launcher . | . . . . . Special . | . . . . . Kinetic 30 | . 26 . . 4 Thermal 82 | . 23 . 22 37 Explosive . | . . . . . Electromagnetic 63 | . 21 40 2 . Robot Hit Streak 12 | . 12 11 5 12 Robot Miss Streak 4 | . 2 2 4 4 Penetration Max . | . . . . . Secondary Targets 5 | . 3 1 1 . Max Gunslinging Chain 1 | . 1 1 1 . Shots Hit Robots 125 | . 49 30 14 32 Core Hits 52 | . 26 10 5 11 Critical Kills . | . . . . . Critical Parts Destroyed . | . . . . . Critical Strikes 2 | . 1 . . 1 Burn 1 | . . . . 1 Corrupt 1 | . 1 . . . Melee Attacks . | . . . . . Impact . | . . . . . Slashing . | . . . . . Piercing . | . . . . . Sneak Attacks . | . . . . . Combat Hostiles . | . . . . . Follow-up Attacks . | . . . . . Damage Inflicted 1929 | . 755 359 244 571 Guns 1792 | . 618 359 244 571 Cannons . | . . . . . Explosions 137 | . 137 . . . Melee . | . . . . . Ramming . | . . . . . Kinetic 202 | . 182 . . 20 Thermal 1092 | . 320 . 221 551 Explosive . | . . . . . Electromagnetic 635 | . 253 359 23 . Impact . | . . . . . Slashing . | . . . . . Piercing . | . . . . . Highest Corruption 22 | . . 17 22 . Average Corruption 21 | . . 16 21 . Corruption Purged . | . . . . . Corruption Blocked . | . . . . . Effects 13 | . . 1 12 . Message Errors 3 | . . 1 2 . Matter Fused 1 | . . . 1 . Heat Flow Errors 3 | . . . 3 . Energy Discharges 1 | . . . 1 . Parts Rejected 2 | . . . 2 . Data Loss (minor) 1 | . . . 1 . Misdirections 1 | . . . 1 . Weapon Failures 1 | . . . 1 . Overload Shots . | . . . . . Overflow Damage . | . . . . . Projectiles . | . . . . . Explosions . | . . . . . Melee . | . . . . . Knockbacks . | . . . . . Impact . | . . . . . Kinetic . | . . . . . Secondary . | . . . . . Self-Inflicted Damage 4 | . 4 . . . Shots 1 | . 1 . . . Rammed . | . . . . . Targets Rammed . | . . . . . Kicked . | . . . . . Crushed . | . . . . . Highest Temperature 441 | . 162 75 436 441 Average Temperature 110 | . 40 30 194 210 Received Heat Transfer 501 | . 174 57 . 270 Effects 5 | . . . 2 3 Shutdowns 1 | . . . 1 . Energy Bleed 2 | . . . 1 1 Damage (major) 2 | . . . . 2 Siege Activations . | . . . . . Robots Corrupted 1 | . . 1 . . Combat Hostiles 1 | . . 1 . . Parts Fried 1 | . . 1 . . Impact Corruptions . | . . . . . Robots Melted . | . . . . . Combat Hostiles . | . . . . . Parts Melted 6 | . 1 . . 5 Heat Transferred 2401 | . 625 . 518 1258 Parts Sabotaged . | . . . . . Parts Stolen . | . . . . . Parts Stripped . | . . . . . Power Chain Reactions 2 | . 2 . . . Alert | -11 -10 -9 -9 -8 ------- Run | Yrd Mat Mat Min Mat Peak Influence 293 | . 293 258 30 87 Initial 31 | . . 31 22 7 Average 73 | . 109 90 9 41 Maximum Alert Level 1 | . 1 1 . . Low Security (%) 88 | 100 83 73 100 100 Level 1 11 | . 16 26 . . Level 2 . | . . . . . Level 3 . | . . . . . Level 4 . | . . . . . Level 5 . | . . . . . High Security . | . . . . . Max Security . | . . . . . Squads Dispatched 4 | . 3 . . 1 Investigation 2 | . 2 . . . Extermination . | . . . . . Reinforcement 2 | . 1 . . 1 Assault . | . . . . . Garrison . | . . . . . Intercept . | . . . . . Searches Triggered . | . . . . . Construction Impeded . | . . . . . Haulers Reinforced . | . . . . . Active Scanning Responses . | . . . . . Cargo Convoy Interrupts . | . . . . . Stealth | -11 -10 -9 -9 -8 --------- Run | Yrd Mat Mat Min Mat Distress Signals 1 | . . . . 1 Communications Jammed . | . . . . . Distress Signals . | . . . . . Times Spotted 70 | . 23 11 24 12 Peak Tracking Total 20 | . 8 5 20 5 Tactical Retreats 8 | . 2 1 2 3 Traps | -11 -10 -9 -9 -8 ------- Run | Yrd Mat Mat Min Mat Traps Triggered 4 | . 2 . . 2 Indirectly . | . . . . . Trap Hack Attempts . | . . . . . Triggered . | . . . . . Disarmed . | . . . . . Reprogrammed . | . . . . . Reused . | . . . . . Traps Extracted . | . . . . . Installed . | . . . . . Triggered . | . . . . . Machines | -11 -10 -9 -9 -8 ---------- Run | Yrd Mat Mat Min Mat Machines Disabled . | . . . . . Max in Single Turn . | . . . . . Machines Repaired . | . . . . . Machines Dismantled . | . . . . . Machines Sabotaged . | . . . . . Overloaded Fab Kills . | . . . . . Hacking | -11 -10 -9 -9 -8 --------- Run | Yrd Mat Mat Min Mat Machines Accessed 9 | . 4 4 . 1 Terminals 5 | . 2 2 . 1 Fabricators . | . . . . . Repair Stations 1 | . . 1 . . Recycling Units 3 | . 2 1 . . Scanalyzers . | . . . . . Garrison Access . | . . . . . Total Hacks 15 | . 5 9 . 1 Successful 7 | . 4 3 . . Failed 8 | . 1 6 . 1 Catastrophic 1 | . 1 . . . Database Lockouts . | . . . . . Manual . | . . . . . Terminals 5 | . 2 2 . 1 Fabricators . | . . . . . Repair Stations 4 | . . 4 . . Recycling Units 6 | . 3 3 . . Scanalyzers . | . . . . . Garrison Access . | . . . . . Terminal Hacks 1 | . 1 . . . Level Access Points 1 | . 1 . . . Fabricator Hacks . | . . . . . Repair Station Hacks 2 | . . 2 . . Scan Component 1 | . . 1 . . Repair 1 | . . 1 . . Recycling Unit Hacks 4 | . 3 1 . . Report Inventory 1 | . 1 . . . Retrieve Components 3 | . 2 1 . . Scanalyzer . | . . . . . Garrison Access Hacks . | . . . . . Unauthorized Hacks . | . . . . . Terminals . | . . . . . Fabricators . | . . . . . Repair Stations . | . . . . . Recycling Units . | . . . . . Scanalyzers . | . . . . . Garrison Access . | . . . . . Data Cores Recovered . | . . . . . Used . | . . . . . Hacking Detections 4 | . 2 2 . . Full Trace Events . | . . . . . Feedback Events . | . . . . . Feedback Blocked . | . . . . . Robot Schematics Acquired . | . . . . . Robots Built . | . . . . . Authchips . | . . . . . Time . | . . . . . Total Robot Build Rating . | . . . . . Part Schematics Acquired . | . . . . . Parts Built . | . . . . . Authchips . | . . . . . Time . | . . . . . Total Part Build Rating . | . . . . . Parts Repaired 1 | . . 1 . . Time 26 | . . 26 . . Parts Recycled . | . . . . . Recycled Matter . | . . . . . Retrieved Matter . | . . . . . Retrieved Components 13 | . 10 3 . . Parts Scanalyzed . | . . . . . Part Schematics Acquired . | . . . . . Parts Damaged . | . . . . . Bothacking | -11 -10 -9 -9 -8 ------------ Run | Yrd Mat Mat Min Mat Used RIF Installer . | . . . . . Robots Hacked . | . . . . . Non-combat . | . . . . . Combat . | . . . . . Robot Hacks Applied . | . . . . . Relay Couplers Released . | . . . . . Fabnet Peak Effective % . | . . . . . Robots Rewired . | . . . . . Allies Hacked . | . . . . . Hacks Repelled . | . . . . . Allies | -11 -10 -9 -9 -8 -------- Run | Yrd Mat Mat Min Mat Total Allies . | . . . . . Largest Group . | . . . . . Highest-Rated Group . | . . . . . Highest-Rated Ally . | . . . . . Total Orders . | . . . . . Ally Attacks . | . . . . . Total Damage . | . . . . . Kills . | . . . . . Allies Corrupted . | . . . . . Allies Melted . | . . . . . Intel | -11 -10 -9 -9 -8 ------- Run | Yrd Mat Mat Min Mat Robot Analysis Total . | . . . . . Derelict Logs Recovered . | . . . . . Drone Launches . | . . . . . Drone Recoveries . | . . . . . Exploration | -11 -10 -9 -9 -8 ------------- Run | Yrd Mat Mat Min Mat Turns Passed 2254 | 84 899 417 188 666 Spaces Moved 850 | 53 394 194 50 159 Core 47 | 14 . . . 33 Treads 775 | 39 394 194 50 98 Legs 28 | . . . . 28 Wheels . | . . . . . Hover . | . . . . . Flight . | . . . . . Fastest Speed 50 | 50 160 160 160 190 Average Speed 216 | 130 193 166 240 354 Slowest Speed 750 | 160 240 240 320 750 Overloaded Moves . | . . . . . Propulsion Burnouts . | . . . . . Robots Hopped . | . . . . . Cave-ins Triggered . | . . . . . Exploration Rate (%) 26 | 4 66 20 23 17 Regions Visited 4 Branch Regions 1 Pre-discovered Areas . | . . . . . Known Exits Taken 1 | . 1 . . . Unknown Exits Taken 3 | 1 . 1 1 . Scrap Searched 1 | . . . 1 . Spaces Dug . | . . . . . Terrain Destroyed 9 | . 9 . . . Melee . | . . . . . Projectile . | . . . . . AOE 9 | . 9 . . . Terrain Rammed . | . . . . . Walls Destroyed . | . . . . . Machines Disabled . | . . . . . Actions | -11 -10 -9 -9 -8 --------- Run | Yrd Mat Mat Min Mat Total 1097 | 67 462 248 95 225 Wait 39 | . 1 22 16 . Move 846 | 52 393 193 49 159 Hop . | . . . . . Pick Up 45 | 8 20 5 1 11 Fast Attach . | . . . . . Attach 35 | 6 1 4 10 14 Detach . | . . . . . Swap 10 | 1 5 2 . 2 Drop 13 | . 7 2 . 4 Fire 109 | . 35 20 19 35 Melee . | . . . . . Ram . | . . . . . Kick . | . . . . . Crush . | . . . . . Escape Stasis . | . . . . . Rewire . | . . . . . Trap . | . . . . . Miscellaneous . | . . . . . Route ------- -11/Scrapyard -10/Materials (discovered 3 exits: *Mat x3) -9/Materials -9/Mines -8/Materials (discovered 1 exit: [*Sto]) History --------- Turn | Location | Event 7 | -11/Scrapyard | Discovered new exit (range 14) 85 | -11/Scrapyard | Entered Materials 314 | -10/Materials | Build established: Mutant 355 | -10/Materials | Destroyed 8 combat bots 467 | -10/Materials | Identified exit to Materials 984 | -10/Materials | Entered another Materials area 984 | -9/Materials | Evolved 2 slots: Propulsion x1, Utility x1 1269 | -9/Materials | Repaired Lgt. Treads 1315 | -9/Materials | Discovered new exit (range 10) 1381 | -9/Materials | System corruption reached 10% 1401 | -9/Materials | Entered Mines 1402 | -9/Mines | Assembled infested the area 1407 | -9/Mines | Assisted by a Guerilla fighting off Assembled 1472 | -9/Mines | Core integrity fell below 50% 1548 | -9/Mines | Lost 13 parts (2p4n3u4w) 1564 | -9/Mines | Discovered new exit (range 9) 1589 | -9/Mines | Entered Materials 1589 | -8/Materials | Evolved 2 slots: Propulsion x1, Utility x1 1785 | -8/Materials | Lost 5 parts (1p1n3u) 1874 | -8/Materials | Discovered new exit (range 15) 2126 | -8/Materials | Core integrity fell below 50% 2137 | -8/Materials | Lost 5 parts (1p1n3w) 2222 | -8/Materials | Core integrity fell below 20% 2255 | -8/Materials | Destroyed by S-10 Pest with Light Assault Rifle Last Messages --------------- Adv. Beam Rifle destroyed. U-05 Engineer lays Concrete. Slug penetrates Wall. Gauss Rifle destroyed. S-10 Pest destroyed. K-01 Serf collects debris. Acquired Arm. Treads. K-01 Serf collects debris. Triggered Blade Trap. Massive razor-sharp blades shoot up from within the floor. Arm. Treads severed. Imp. Heat Sink severed. Targeting Computer severed. K-01 Serf collects debris. U-05 Engineer lays Concrete. S-10 Pest destroyed. R-06 Scavenger collects Arm. Treads. R-06 Scavenger collects Imp. Heat Sink. R-06 Scavenger collects Flight Unit. Map ----- +----------------------------------------------------+ | | | | | ????????????????????????????????????????????????? | | ????????????????????????????????????????????????? | | ????????????????????????????????????????????????? | | ????????????????????????????????????????????????? | | ????????????????????????????????????????????????? | | ????????????????????????????????????????????????? | | ????????????????????????????????????????????????? | | ????????????????????????????????????????????????? | | ????????????????????????????????????????????????? | | ????????????????????????????????????????????????? | | ????????????????????????????????????????????????? | | ????????????????????????????????????????????????? | | ????????????????????????????????????????????????? | | ?????????????????????????###????????????????????? | | ????????????????????????? ????????????????????? | | ????????????????????????# ???????????????????? | | ????????????????????????# ???????????????????? | | ????????????????????????# ???????????????????? | | ????????????????????????# ????????????????????? | | ????????????????????????# ""????????????????????? | | ????????????????????????# "?????????????????????? | | ????????????????????????# "?????????????????????? | | ????????????????????????#/#?????????????????????? | | ????????????????????????#@#?????????????????????? | | ??????????????########### #?????????????????????? | | ??????????????# # #?????????????????????? | | ??????????????# """ """ # #?????????????????????? | | ??????????????# """ """ #s########??????????????? | | ??????????????# """ """ + !???????? | | ??????????????# # !#???????? | | ??????????????# # /!! "#??????????? | | ??????????????# # /!! T#??????????? | | ??????????????# # /! = "##########?? | | ???????????########+#####k # #?? | | ???????????# + # """ #?? | | ???????????# """ # ##+#########+## # """ #?? | | ???????????# """??# #?? ?????????# # """ #?? | | ???????????# "????# #??? ???????# # !#?? | | ??????????????????# #?????* ??????# # """ #?? | | ??????????????????# #?????? ????# # """ #?? | | ???????????????#### #??????? ???# # """ #?? | | ??##############T##%#?????????##### # #?? | | ??# %= % #??????????# ###+######?? | | ??# #??????????# "" #???? | | ? %[% #?########## T #???? | | ? ^ #?#= # #???? | | ? ^#?#= "" # ###+######?? | | ?? #T######### ####?#= """ ## ## #?? | +----------------------------------------------------+ Best States ------------- Heat Dissipation 45 Energy Generation 14 Energy Capacity 250 Matter Stores 300 Matter Capacity 300 Sight Range 16 Terrain Scan Density 10 Armor Coverage 225 Evasion (%) 50 Targeting Accuracy 10 Recoil Reduction 3 Item Schematics ----------------- None Robot Schematics ------------------ None Fabricated ------------ Nothing Alien Tech Used ----------------- None Achievements -------------- Hunted Challenges ------------ None Game ------ Seed NuclearPulsePurifier Manual? 0 Play Time 00:16:18 Cumulative 11.9 hours Start 2024.04.03 @ 18:24:10 End 2024.04.03 @ 18:37:55 Sessions 1 Manual Loads 0 Difficulty Rogue Special Mode None Game No. 25 Rogue 25 Adventurer 0 Explorer 0 Win Type - Total 0 Types 0/0/0/0/0/0/0/0/0 Lore% 8 Gallery% 18 Achievement% 18 Wizard Run 0 Options --------- Layout 1 ASCII 0 Keyboard 0 Movement Numpad Keybinds 0 Fullscreen 1 Font 32/SmallcapsGlow Map View 50x35 Zoom Use 0% Tactical HUD 0 Map Filters NONE Filters NONE Steam 1 RUN: 56be7488-78f3-46a8-9f6e-c9a8144718aa